fUST/lending_fUST_20250602
["ID","MTS","AMOUNT","RATE_DAILY","PERIOD"]
[363659243,1748801440817,-430.0,0.00016712,2]
[363659245,1748801440826,-430.0,0.00016712,2]
[363659247,1748801440836,-430.0,0.00016712,2]
[363659249,1748801440845,-430.0,0.00016712,2]
[363659250,1748801440854,-430.0,0.00016712,2]
[363659252,1748801440863,-522.05,0.00016712,2]
[363659254,1748801440873,-299.91,0.00016712,2]
[363659256,1748801440882,-339.57,0.00016712,2]
[363659258,1748801440892,-430.0,0.00016712,2]
[363659260,1748801440901,-430.0,0.00016712,2]
[363659262,1748801440911,-430.0,0.00016712,2]
[363659264,1748801440920,-402.48,0.00016712,2]
[363659266,1748801440929,-430.0,0.00016712,2]
[363659268,1748801440939,-517.32,0.00016712,2]
[363659270,1748801440948,-430.0,0.00016712,2]
[363659272,1748801440958,-438.62936774,0.00016712,2]
[363659274,1748801440967,-843.3,0.00016712,2]
[363659276,1748801440977,-641.22,0.00016712,2]
[363659277,1748801440986,-602.19,0.00016712,2]
[363659280,1748801440996,-430.0,0.00016712,2]
[363659281,1748801441007,-629.18,0.00016712,2]
[363659283,1748801441016,-430.0,0.00016712,2]
[363659285,1748801441026,-430.0,0.00016712,2]
[363659287,1748801441036,-500.0,0.0001687,2]
[363659289,1748801441045,-2099.66818594,0.000169,2]
[363659291,1748801441055,-425.98,0.00016986,2]
[363659293,1748801441064,-430.0,0.00016986,2]
[363659295,1748801441074,-694.84,0.00016986,2]
[363659297,1748801441084,-430.0,0.00016986,2]
[363659299,1748801441094,-430.0,0.00016986,2]
[363659302,1748801441105,-430.0,0.00016986,2]
[363659304,1748801441114,-430.0,0.00016986,2]
[363659306,1748801441124,-430.0,0.00016986,2]
[363659308,1748801441134,-430.0,0.00016986,2]
[363659310,1748801441144,-512.69,0.00016986,2]
[363659311,1748801441153,-430.0,0.00016986,2]
[363659313,1748801441163,-430.0,0.00016986,2]
[363659315,1748801441173,-843.3,0.00016986,2]
[363659317,1748801441183,-641.22,0.00016986,2]
[363659319,1748801441194,-602.19,0.00016986,2]
[363659321,1748801441203,-430.0,0.00016986,2]
[363659323,1748801441213,-629.18,0.00016986,2]
[363659325,1748801441223,-430.0,0.00016986,2]
[363659327,1748801441232,-430.0,0.00016986,2]
[363659329,1748801441241,-207.53191883,0.00017024,2]
[363659331,1748801441252,-2099.66818568,0.00017141,2]
[363659333,1748801441262,-430.0,0.0001726,2]
[363659335,1748801441272,-694.84,0.0001726,2]
[363659337,1748801441281,-430.0,0.0001726,2]
[363659339,1748801441291,-430.0,0.0001726,2]
[363659341,1748801441300,-430.0,0.0001726,2]
[363659343,1748801441309,-430.0,0.0001726,2]
[363659345,1748801441320,-430.0,0.0001726,2]
[363659347,1748801441330,-430.0,0.0001726,2]
[363659349,1748801441340,-430.0,0.0001726,2]
[363659351,1748801441351,-430.0,0.0001726,2]
[363659353,1748801441361,-843.3,0.0001726,2]
[363659355,1748801441372,-641.22,0.0001726,2]
[363659357,1748801441383,-602.19,0.0001726,2]
[363659359,1748801441392,-180.35588131,0.0001726,2]
[363659361,1748801441402,-629.18,0.0001726,2]
[363659363,1748801441412,-430.0,0.0001726,2]
[363659365,1748801441422,-430.0,0.0001726,2]
[363659367,1748801441431,-2099.66818568,0.00017383,2]
[363659369,1748801441441,-321.40515729,0.00017418,2]
[363659371,1748801441451,-420.0,0.00017489,2]
[363659373,1748801441460,-420.0,0.00017489,2]
[363659375,1748801441470,-420.0,0.00017489,2]
[363659377,1748801441481,-420.0,0.0001749,2]
[363659379,1748801441490,-430.0,0.00017534,2]
[363659381,1748801441499,-694.84,0.00017534,2]
[363659383,1748801441512,-430.0,0.00017534,2]
[363659385,1748801441523,-430.0,0.00017534,2]
[363659387,1748801441532,-430.0,0.00017534,2]
[363659389,1748801441542,-430.0,0.00017534,2]
[363659391,1748801441552,-430.0,0.00017534,2]
[363659393,1748801441562,-430.0,0.00017534,2]
[363659395,1748801441572,-430.0,0.00017534,2]
[363659397,1748801441581,-843.3,0.00017534,2]
[363659399,1748801441590,-641.22,0.00017534,2]
[363659401,1748801441600,-602.19,0.00017534,2]
[363659403,1748801441609,-629.18,0.00017534,2]
[363659405,1748801441619,-430.0,0.00017534,2]
[363659407,1748801441628,-430.0,0.00017534,2]
[363659409,1748801441638,-1680.0,0.00017577,2]
[363659411,1748801441647,-2099.66818568,0.00017624,2]
[363659413,1748801441657,-160.0,0.00017795,2]
[363659415,1748801441667,-430.0,0.00017808,2]
[363659417,1748801441676,-694.84,0.00017808,2]
[363659419,1748801441685,-430.0,0.00017808,2]
[363659421,1748801441695,-430.0,0.00017808,2]
[363659423,1748801441704,-430.0,0.00017808,2]
[363659425,1748801441714,-430.0,0.00017808,2]
[363659427,1748801441724,-157.14,0.00017808,2]
[363659429,1748801441733,-430.0,0.00017808,2]
[363659431,1748801441742,-430.0,0.00017808,2]
[363659433,1748801441753,-843.3,0.00017808,2]
[363659435,1748801441763,-641.22,0.00017808,2]
[363659437,1748801441772,-602.19,0.00017808,2]
[363659439,1748801441782,-629.18,0.00017808,2]
[363659441,1748801441791,-430.0,0.00017808,2]
[363659443,1748801441801,-470.38,0.00017808,2]
[363659445,1748801441810,-2099.66818568,0.00017866,2]
[363659447,1748801441820,-783.01,0.00017955,2]
[363659449,1748801441830,-430.0,0.00018082,2]
[363659451,1748801441839,-694.84,0.00018082,2]
[363659453,1748801441848,-430.0,0.00018082,2]
[363659455,1748801441857,-430.0,0.00018082,2]
[363659457,1748801441867,-430.0,0.00018082,2]
[363659459,1748801441877,-430.0,0.00018082,2]
[363659461,1748801441888,-430.0,0.00018082,2]
[363659463,1748801441897,-430.0,0.00018082,2]
[363659465,1748801441907,-843.3,0.00018082,2]
[363659467,1748801441916,-641.22,0.00018082,2]
[363659469,1748801441926,-602.19,0.00018082,2]
[363659471,1748801441935,-629.18,0.00018082,2]
[363659473,1748801441944,-430.0,0.00018082,2]
[363659475,1748801441954,-2099.66818568,0.00018107,2]
[363659477,1748801441964,-207.53191883,0.00018151,2]
[363659479,1748801441973,-212.80060342,0.00018255,2]
[363659481,1748801441982,-160.0,0.00018256,2]
[363659482,1748801441992,-229.3709046,0.00018256,2]
[363659485,1748801442002,-423.51412927,0.00018256,2]
[363659486,1748801442011,-2099.66818568,0.00018348,2]
[363659488,1748801442021,-430.0,0.00018356,2]
[363659490,1748801442031,-694.84,0.00018356,2]
[363659493,1748801442040,-430.0,0.00018356,2]
[363659495,1748801442051,-430.0,0.00018356,2]
[363659497,1748801442060,-430.0,0.00018356,2]
[363659499,1748801442070,-535.36,0.00018356,2]
[363659501,1748801442079,-430.0,0.00018356,2]
[363659503,1748801442089,-430.0,0.00018356,2]
[363659505,1748801442099,-843.3,0.00018356,2]
[363659507,1748801442109,-641.22,0.00018356,2]
[363659509,1748801442118,-602.19,0.00018356,2]
[363659511,1748801442128,-629.18,0.00018356,2]
[363659513,1748801442137,-430.0,0.00018356,2]
[363659515,1748801442147,-2099.66818568,0.0001859,2]
[363659517,1748801442157,-430.0,0.0001863,2]
[363659519,1748801442167,-694.84,0.0001863,2]
[363659521,1748801442177,-430.0,0.0001863,2]
[363659523,1748801442187,-430.0,0.0001863,2]
[363659525,1748801442197,-430.0,0.0001863,2]
[363659527,1748801442206,-430.0,0.0001863,2]
[363659529,1748801442216,-430.0,0.0001863,2]
[363659531,1748801442226,-843.3,0.0001863,2]
[363659533,1748801442236,-641.22,0.0001863,2]
[363659535,1748801442246,-602.19,0.0001863,2]
[363659537,1748801442256,-629.18,0.0001863,2]
[363659539,1748801442266,-430.0,0.0001863,2]
[363659541,1748801442275,-3000.0,0.000188,2]
[363659543,1748801442285,-3000.0,0.0001881,2]
[363659545,1748801442295,-3000.0,0.0001882,2]
[363659547,1748801442304,-3000.0,0.0001883,2]
[363659549,1748801442315,-2099.66818568,0.00018831,2]
[363659551,1748801442326,-3000.0,0.0001884,2]
[363659553,1748801442337,-4483.080538,0.0001885,2]
[363659555,1748801442347,-526.35865506,0.000189,2]
[363659557,1748801442356,-151.0,0.000189,2]
[363659559,1748801442366,-430.0,0.00018904,2]
[363659561,1748801442375,-694.84,0.00018904,2]
[363659563,1748801442385,-430.0,0.00018904,2]
[363659565,1748801442395,-430.0,0.00018904,2]
[363659567,1748801442405,-430.0,0.00018904,2]
[363659569,1748801442416,-430.0,0.00018904,2]
[363659571,1748801442426,-430.0,0.00018904,2]
[363659574,1748801442436,-843.3,0.00018904,2]
[363659575,1748801442446,-641.22,0.00018904,2]
[363659578,1748801442456,-602.19,0.00018904,2]
[363659580,1748801442466,-629.18,0.00018904,2]
[363659582,1748801442476,-430.0,0.00018904,2]
[363659584,1748801442485,-2099.66818568,0.00019072,2]
[363659586,1748801442495,-587.0,0.00019123,2]
[363659588,1748801442509,-430.0,0.00019178,2]
[363659590,1748801442519,-694.84,0.00019178,2]
[363659592,1748801442528,-302.96,0.00019178,2]
[363659593,1748801442537,-430.0,0.00019178,2]
[363659596,1748801442547,-430.0,0.00019178,2]
[363659597,1748801442557,-430.0,0.00019178,2]
[363659599,1748801442567,-430.0,0.00019178,2]
[363659601,1748801442577,-843.3,0.00019178,2]
[363659604,1748801442589,-430.0,0.00019178,2]
[363659606,1748801442599,-430.0,0.00019178,2]
[363659608,1748801442609,-430.0,0.00019178,2]
[363659610,1748801442619,-430.0,0.00019178,2]
[363659613,1748801442630,-430.0,0.00019178,2]
[363659614,1748801442640,-430.0,0.00019178,2]
[363659616,1748801442650,-430.0,0.00019178,2]
[363659618,1748801442659,-430.0,0.00019178,2]
[363659621,1748801442669,-641.22,0.00019178,2]
[363659623,1748801442679,-602.19,0.00019178,2]
[363659624,1748801442688,-629.18,0.00019178,2]
[363659627,1748801442698,-335.92,0.00019178,2]
[363659629,1748801442707,-500.0,0.00019178,2]
[363659631,1748801442717,-500.0,0.00019178,2]
[363659633,1748801442726,-500.0,0.00019178,2]
[363659635,1748801442736,-500.0,0.00019178,2]
[363659637,1748801442746,-500.0,0.00019178,2]
[363659638,1748801442756,-500.0,0.00019178,2]
[363659641,1748801442765,-500.0,0.00019178,2]
[363659643,1748801442775,-500.0,0.00019178,2]
[363659644,1748801442785,-500.0,0.00019178,2]
[363659646,1748801442795,-500.0,0.00019178,2]
[363659648,1748801442804,-500.0,0.00019178,2]
[363659651,1748801442814,-500.0,0.00019178,2]
[363659653,1748801442824,-500.0,0.00019178,2]
[363659655,1748801442834,-562.73371435,0.00019178,2]
[363659657,1748801442844,-151.0,0.00019178,2]
[363659659,1748801442854,-173.899304,0.00019178,2]
[363659661,1748801442863,-156.587,0.00019233,2]
[363659663,1748801442873,-207.53191883,0.00019277,2]
[363659665,1748801442883,-162.380719,0.00019288,2]
[363659667,1748801442892,-2099.66818568,0.00019314,2]
[363659669,1748801442902,-2351.0,0.00019314,2]
[363659671,1748801442911,-99862.49799776,0.00019329,2]
[363659673,1748801442920,-168.3888056,0.00019343,2]
[363659675,1748801442929,-174.61919141,0.00019398,2]
[363659677,1748801442939,-430.0,0.00019452,2]
[363659679,1748801442949,-694.84,0.00019452,2]
[363659681,1748801442958,-430.0,0.00019452,2]
[363659683,1748801442967,-430.0,0.00019452,2]
[363659684,1748801442977,-430.0,0.00019452,2]
[363659686,1748801442986,-430.0,0.00019452,2]
[363659689,1748801442996,-843.3,0.00019452,2]
[363659691,1748801443007,-641.22,0.00019452,2]
[363659693,1748801443017,-602.19,0.00019452,2]
[363659695,1748801443026,-629.18,0.00019452,2]
[363659697,1748801443036,-181.08010149,0.00019453,2]
[363659699,1748801443045,-187.78006525,0.00019508,2]
[363659701,1748801443055,-2099.66818568,0.00019555,2]
[363659703,1748801443064,-194.72792766,0.00019563,2]
[363659718,1748801443199,-404.294,0.00019574,2]
[363659720,1748801443208,-178.59002559,0.00019574,2]
[363659722,1748801443220,-1566.01,0.00019587,2]
[363659724,1748801443230,-201.93286099,0.00019618,2]
[363659726,1748801443240,-209.40437684,0.00019673,2]
[363659728,1748801443250,-151.0,0.000197,2]
[363659730,1748801443260,-430.0,0.00019726,2]
[363659732,1748801443270,-694.84,0.00019726,2]
[363659734,1748801443280,-430.0,0.00019726,2]
[363659737,1748801443291,-430.0,0.00019726,2]
[363659740,1748801443301,-430.0,0.00019726,2]
[363659743,1748801443310,-430.0,0.00019726,2]
[363659745,1748801443320,-843.3,0.00019726,2]
[363659747,1748801443330,-641.22,0.00019726,2]
[363659749,1748801443340,-602.19,0.00019726,2]
[363659751,1748801443349,-629.18,0.00019726,2]
[363659753,1748801443359,-217.15233878,0.00019728,2]
[363659755,1748801443368,-225.18697532,0.00019783,2]
[363659757,1748801443378,-2099.66818568,0.00019797,2]
[363659759,1748801443388,-233.51889341,0.00019838,2]
[363659761,1748801443398,-242.15909246,0.00019893,2]
[363659763,1748801443408,-716.36463324,0.00019946,2]
[363659765,1748801443417,-251.11897888,0.00019948,2]
[363659767,1748801443426,-430.0,0.0002,2]
[363659769,1748801443436,-694.84,0.0002,2]
[363659771,1748801443446,-179.11577583,0.0002,2]
[363659773,1748801443455,-430.0,0.0002,2]
[363659775,1748801443465,-193.30573625,0.0002,2]
[363659777,1748801443474,-430.0,0.0002,2]
[363659779,1748801443484,-430.0,0.0002,2]
[363659781,1748801443493,-843.3,0.0002,2]
[363659783,1748801443504,-641.22,0.0002,2]
[363659785,1748801443515,-602.19,0.0002,2]
[363659787,1748801443526,-629.18,0.0002,2]
[363659789,1748801443535,-260.4103811,0.00020003,2]
[363659792,1748801443547,-2099.66818568,0.00020038,2]
[363659793,1748801443557,-270.0455652,0.00020058,2]
[363659796,1748801443567,-500.0,0.00020067,2]
[363659797,1748801443576,-280.03725112,0.00020113,2]
[363659800,1748801443586,-232.23792853,0.00020168,2]
[363659802,1748801443596,-227.295911,0.00020187,2]
[363659803,1748801443606,-313.4,0.00020273,2]
[363659806,1748801443617,-694.84,0.00020273,2]
[363659808,1748801443628,-430.0,0.00020273,2]
[363659810,1748801443638,-430.0,0.00020273,2]
[363659812,1748801443648,-430.0,0.00020273,2]
[363659814,1748801443658,-843.3,0.00020273,2]
[363659816,1748801443668,-641.22,0.00020273,2]
[363659818,1748801443678,-602.19,0.00020273,2]
[363659820,1748801443689,-629.18,0.00020273,2]
[363659822,1748801443700,-2099.66818568,0.00020279,3]
[363659824,1748801443710,-500.0,0.000203,2]
[363659826,1748801443720,-207.53191883,0.00020403,2]
[363659828,1748801443729,-151.0,0.000205,3]
[363659830,1748801443739,-2099.66818568,0.00020521,3]
[363659832,1748801443749,-694.84,0.00020547,2]
[363659834,1748801443760,-430.0,0.00020547,2]
[363659836,1748801443770,-430.0,0.00020547,2]
[363659839,1748801443779,-542.61,0.00020547,2]
[363659841,1748801443790,-843.3,0.00020547,2]
[363659843,1748801443800,-641.22,0.00020547,2]
[363659844,1748801443809,-602.19,0.00020547,2]
[363659846,1748801443818,-629.18,0.00020547,2]
[363659849,1748801443828,-423.85,0.000206,2]
[363659851,1748801443837,-2610.3,0.000206,2]
[363659853,1748801443847,-151.0,0.000207,4]
[363659855,1748801443857,-2099.66818568,0.00020762,3]
[363659857,1748801443866,-694.84,0.00020821,2]
[363659859,1748801443875,-430.0,0.00020821,2]
[363659860,1748801443884,-453.72,0.00020821,2]
[363659863,1748801443893,-843.3,0.00020821,2]
[363659865,1748801443903,-641.22,0.00020821,2]
[363659867,1748801443912,-602.19,0.00020821,2]
[363659869,1748801443922,-629.18,0.00020821,2]
[363659871,1748801443931,-1000.0,0.00020848,2]
[363659873,1748801443940,-427.0,0.00020907,2]
[363659875,1748801443950,-649.21402904,0.0002095,2]
[363659877,1748801443959,-500.0,0.0002095,2]
[363659879,1748801443968,-154.67873888,0.00020972,2]
[363659881,1748801443977,-207.4,0.00020972,2]
[363659883,1748801443986,-800.0,0.00020972,2]
[363659885,1748801443996,-800.0,0.00020972,2]
[363659887,1748801444006,-300.0,0.00020972,2]
[363659889,1748801444016,-800.0,0.00020972,2]
[363659891,1748801444026,-300.0,0.00020972,2]
[363659893,1748801444035,-800.0,0.00020972,2]
[363659895,1748801444045,-300.0,0.00020972,2]
[363659897,1748801444055,-800.0,0.00020972,2]
[363659899,1748801444064,-300.0,0.00020972,2]
[363659901,1748801444073,-300.0,0.00020972,2]
[363659903,1748801444082,-800.0,0.00020972,2]
[363659905,1748801444093,-300.0,0.00020972,2]
[363659907,1748801444103,-5000.0,0.00020972,2]
[363659909,1748801444112,-800.0,0.00020972,2]
[363659911,1748801444122,-300.0,0.00020972,2]
[363659913,1748801444131,-800.0,0.00020972,2]
[363659915,1748801444141,-300.0,0.00020972,2]
[363659917,1748801444151,-800.0,0.00020972,2]
[363659919,1748801444161,-300.0,0.00020972,2]
[363659921,1748801444171,-800.0,0.00020972,2]
[363659923,1748801444182,-300.0,0.00020972,2]
[363659925,1748801444192,-800.0,0.00020972,2]
[363659927,1748801444201,-300.0,0.00020972,2]
[363659929,1748801444211,-800.0,0.00020972,2]
[363659931,1748801444221,-300.0,0.00020972,2]
[363659933,1748801444230,-800.0,0.00020972,2]
[363659935,1748801444239,-300.0,0.00020972,2]
[363659937,1748801444250,-800.0,0.00020972,2]
[363659939,1748801444259,-300.0,0.00020972,2]
[363659941,1748801444268,-800.0,0.00020972,2]
[363659943,1748801444277,-300.0,0.00020972,2]
[363659945,1748801444287,-359.78747334,0.00021,2]
[363659947,1748801444296,-3000.0,0.00021,2]
[363659949,1748801444305,-2099.66818568,0.00021003,4]
[363659951,1748801444314,-3000.0,0.0002101,2]
[363659953,1748801444323,-3000.0,0.0002102,2]
[363659955,1748801444333,-3000.0,0.0002103,2]
[363659957,1748801444342,-3000.0,0.0002104,2]
[363659959,1748801444352,-3000.0,0.0002105,2]
[363659961,1748801444361,-3000.0,0.0002106,2]
[363659963,1748801444370,-3000.0,0.0002107,2]
[363659965,1748801444380,-3000.0,0.0002108,2]
[363659967,1748801444390,-3000.0,0.0002109,2]
[363659969,1748801444400,-694.84,0.00021095,2]
[363659970,1748801444409,-430.0,0.00021095,2]
[363659971,1748801444419,-843.3,0.00021095,2]
[363659972,1748801444428,-641.22,0.00021095,2]
[363659973,1748801444437,-602.19,0.00021095,2]
[363659974,1748801444447,-629.18,0.00021095,2]
[363659975,1748801444456,-3000.0,0.000211,2]
[363659976,1748801444465,-3000.0,0.0002111,2]
[363659977,1748801444474,-3000.0,0.0002112,2]
[363659978,1748801444483,-3000.0,0.0002113,2]
[363659979,1748801444493,-3000.0,0.0002114,2]
[363659980,1748801444502,-3000.0,0.0002115,2]
[363659981,1748801444515,-3000.0,0.0002116,2]
[363659982,1748801444523,-3000.0,0.0002117,2]
[363659983,1748801444532,-3000.0,0.0002118,2]
[363659984,1748801444541,-3000.0,0.0002119,2]
[363659985,1748801444551,-3000.0,0.000212,2]
[363659986,1748801444559,-23248.5,0.000212,2]
[363659987,1748801444569,-151.0,0.000212,4]
[363659988,1748801444578,-3000.0,0.0002121,2]
[363659989,1748801444589,-2349.02,0.00021219,2]
[363659990,1748801444599,-3000.0,0.0002122,2]
[363659992,1748801444609,-1437.0,0.00021223,2]
[363659994,1748801444619,-3000.0,0.0002123,2]
[363659996,1748801444628,-3000.0,0.0002124,2]
[363659998,1748801444639,-2099.66818568,0.00021245,4]
[363660000,1748801444648,-3000.0,0.0002125,2]
[363660003,1748801444658,-3000.0,0.0002126,2]
[363660005,1748801444667,-3000.0,0.0002127,2]
[363660007,1748801444677,-3000.0,0.0002128,2]
[363660009,1748801444686,-3000.0,0.0002129,2]
[363660011,1748801444695,-3000.0,0.000213,2]
[363660012,1748801444705,-3000.0,0.0002131,2]
[363660015,1748801444715,-3000.0,0.0002132,2]
[363660016,1748801444725,-3000.0,0.0002133,2]
[363660019,1748801444735,-3000.0,0.0002134,2]
[363660021,1748801444744,-3000.0,0.0002135,2]
[363660022,1748801444755,-3000.0,0.0002136,2]
[363660025,1748801444764,-694.84,0.00021369,2]
[363660027,1748801444773,-430.0,0.00021369,2]
[363660028,1748801444783,-843.3,0.00021369,2]
[363660031,1748801444792,-641.22,0.00021369,2]
[363660033,1748801444803,-602.19,0.00021369,2]
[363660035,1748801444812,-629.18,0.00021369,2]
[363660037,1748801444822,-3000.0,0.0002137,2]
[363660039,1748801444832,-3000.0,0.0002138,2]
[363660041,1748801444841,-3000.0,0.0002139,2]
[363660043,1748801444851,-1500.0,0.00021396,2]
[363660045,1748801444860,-3000.0,0.000214,2]
[363660047,1748801444869,-151.0,0.000214,3]
[363660049,1748801444879,-151.0,0.000214,3]
[363660051,1748801444888,-3000.0,0.0002141,2]
[363660053,1748801444897,-3000.0,0.0002142,2]
[363660055,1748801444907,-3000.0,0.0002143,2]
[363660057,1748801444916,-4202.395677,0.0002144,2]
[363660059,1748801444926,-2099.66818568,0.00021486,5]
[363660061,1748801444936,-155.21786445,0.00021498,2]
[363660062,1748801444946,-247.32,0.000215,2]
[363660065,1748801444957,-5000.0,0.0002152,2]
[363660067,1748801444966,-207.53191883,0.00021529,2]
[363660069,1748801444976,-800.0,0.00021594,2]
[363660071,1748801444985,-694.84,0.00021643,2]
[363660073,1748801444994,-430.0,0.00021643,2]
[363660075,1748801445006,-843.3,0.00021643,2]
[363660076,1748801445015,-641.22,0.00021643,2]
[363660078,1748801445025,-602.19,0.00021643,2]
[363660081,1748801445035,-629.18,0.00021643,2]
[363660083,1748801445045,-2610.3,0.000217,2]
[363660085,1748801445055,-2099.66818568,0.00021728,5]
[363660087,1748801445064,-716.36463324,0.00021749,2]
[363660089,1748801445074,-800.0,0.0002185,2]
[363660091,1748801445083,-2109.92,0.0002189,2]
[363660093,1748801445092,-2109.92,0.0002189,2]
[363660095,1748801445101,-2109.92,0.0002189,2]
[363660097,1748801445110,-2109.92,0.0002189,2]
[363660099,1748801445120,-2109.92,0.0002189,2]
[363660100,1748801445129,-2109.92,0.0002189,2]
[363660102,1748801445138,-2109.92,0.0002189,2]
[363660104,1748801445147,-2109.92,0.0002189,2]
[363660106,1748801445156,-2109.92,0.0002189,2]
[363660108,1748801445165,-2109.92,0.0002189,2]
[363660110,1748801445174,-2109.92,0.0002189,2]
[363660112,1748801445184,-2109.92,0.0002189,2]
[363660114,1748801445193,-2109.92,0.0002189,2]
[363660116,1748801445203,-2109.92,0.0002189,2]
[363660118,1748801445212,-2109.92,0.0002189,2]
[363660120,1748801445221,-2109.92,0.0002189,2]
[363660122,1748801445230,-2109.92,0.0002189,2]
[363660124,1748801445239,-2109.92,0.0002189,2]
[363660126,1748801445248,-2109.92,0.0002189,2]
[363660128,1748801445259,-2109.92,0.0002189,2]
[363660129,1748801445268,-2109.92,0.00021917,2]
[363660131,1748801445277,-694.84,0.00021917,2]
[363660133,1748801445286,-430.0,0.00021917,2]
[363660135,1748801445295,-843.3,0.00021917,2]
[363660137,1748801445305,-641.22,0.00021917,2]
[363660139,1748801445315,-602.19,0.00021917,2]
[363660141,1748801445324,-629.18,0.00021917,2]
[363660143,1748801445333,-150.0,0.00021918,2]
[363660145,1748801445343,-1000.54762423,0.00021944,2]
[363660147,1748801445353,-2099.66818568,0.00021969,6]
[363660149,1748801445363,-255.811957,0.00022,2]
[363660151,1748801445373,-255.811957,0.00022,2]
[363660154,1748801445383,-423.85,0.00022,7]
[363660156,1748801445393,-151.0,0.00022,7]
[363660158,1748801445402,-151.0,0.00022,7]
[363660160,1748801445413,-151.0,0.00022,7]
[363660162,1748801445423,-151.0,0.00022,7]
[363660164,1748801445432,-64439.14981469,0.00022,7]
[363660175,1748801445536,-1284.18039566,0.00022,7]
[363660216,1748801445922,-430.0,0.00016438,2]
[363660218,1748801445932,-430.0,0.00016712,2]
[363660220,1748801445941,-430.0,0.00016986,2]
[363660222,1748801445950,-1483.78033646,0.00022,7]
[363660251,1748801446229,-247.76526081,0.00016437,2]
[363660253,1748801446242,-52.23473919,0.00016437,2]
[363660255,1748801446251,-430.0,0.00016438,2]
[363660257,1748801446262,-430.0,0.00016438,2]
[363660259,1748801446271,-785.42,0.00016438,2]
[363660261,1748801446282,-430.0,0.00016712,2]
[363660263,1748801446292,-430.0,0.00016712,2]
[363660266,1748801446303,-785.42,0.00016712,2]
[363660268,1748801446313,-430.0,0.00016986,2]
[363660270,1748801446323,-430.0,0.00016986,2]
[363660272,1748801446332,-785.42,0.00016986,2]
[363660274,1748801446342,-430.0,0.0001726,2]
[363660276,1748801446351,-430.0,0.0001726,2]
[363660278,1748801446362,-785.42,0.0001726,2]
[363660280,1748801446371,-430.0,0.00017534,2]
[363660282,1748801446381,-430.0,0.00017534,2]
[363660284,1748801446390,-785.42,0.00017534,2]
[363660286,1748801446400,-430.0,0.00017808,2]
[363660288,1748801446410,-430.0,0.00017808,2]
[363660290,1748801446419,-785.42,0.00017808,2]
[363660292,1748801446429,-287.0,0.00017963,2]
[363660294,1748801446439,-430.0,0.00018082,2]
[363660296,1748801446451,-430.0,0.00018082,2]
[363660298,1748801446461,-785.42,0.00018082,2]
[363660300,1748801446470,-160.0,0.00018255,2]
[363660302,1748801446480,-430.0,0.00018356,2]
[363660304,1748801446489,-430.0,0.00018356,2]
[363660306,1748801446499,-785.42,0.00018356,2]
[363660308,1748801446513,-430.0,0.0001863,2]
[363660310,1748801446529,-430.0,0.00018904,2]
[363660312,1748801446539,-430.0,0.00019178,2]
[363660314,1748801446551,-430.0,0.00019452,2]